bitfinex/quotes_SOLUSD_20240624
["timestamp","ask_amount","ask_price","bid_price","bid_amount"]
[1719200843968,16.1665,127.12,127.09,0.91555965]
[1719200845072,16.1665,127.12,127.07,1.25631009]
[1719200845274,16.1665,127.12,127.08,0.34]
[1719200845570,16.1665,127.12,127.08,2.07511995]
[1719200846567,16.1665,127.12,127.08,0.34]
[1719200846771,16.1665,127.12,127.08,1.79204949]
[1719200848458,16.1665,127.12,127.07,0.34]
[1719200849150,16.1665,127.12,127.08,0.17]
[1719200849350,16.1665,127.12,127.06,0.34]
[1719200850946,16.1665,127.12,127.06,8.2102]
[1719200851165,16.1665,127.12,127.06,7.7102]
[1719200852266,16.1665,127.12,127.06,107.7102]
[1719200852470,16.1665,127.12,127.07,7.8696]
[1719200853252,16.1665,127.12,127.08,0.17]
[1719200853453,16.1665,127.12,127.08,0.34]
[1719200854747,16.1665,127.12,127.07,0.34]
[1719200855364,16.1665,127.12,127.07,1.13704011]
[1719200856373,16.1665,127.12,127.07,0.34]
[1719200857481,16.1665,127.12,127.07,8.2095]
[1719200858866,16.1665,127.12,127.07,0.34]
[1719200860378,16.1665,127.12,127.07,8.2096]
[1719200861578,16.1665,127.12,127.07,0.34]
[1719200862682,16.1665,127.12,127.07,8.2095]
[1719200862978,16.1665,127.12,127.08,1.30381514]
[1719200863190,16.1665,127.12,127.05,2.87458984]
[1719200865102,15.9769,127.1,127.02,26.6327]
[1719200865266,15.9769,127.1,127.03,1.06298442]
[1719200866559,6.26,127.09,127.04,6.26]
[1719200866764,6.26,127.09,127.05,1.0736787]
[1719200867768,6.26,127.09,127.04,6.26]
[1719200867967,6.26,127.09,127.05,2.66121471]
[1719200868999,15.9769,127.1,127.06,2.77650539]
[1719200869199,15.9769,127.1,127.07,9.03628688]
[1719200869485,15.9769,127.1,127.08,6.26]
[1719200871467,15.9769,127.1,127.07,2.77628688]
[1719200871690,15.9769,127.1,127.08,6.26]
[1719200872984,15.9769,127.1,127.07,2.77628688]
[1719200872985,22.9102,127.15,127.09,9.37665252]
[1719200873177,29.1702,127.15,127.1,9.03643405]
[1719200873379,6.26,127.14,127.1,2.77643405]
[1719200873571,22.9102,127.15,127.11,3.19972891]
[1719200873973,29.1702,127.15,127.11,3.19972891]
[1719200874177,29.1702,127.15,127.11,6.26]
[1719200874391,29.1702,127.15,127.12,4.77975257]
[1719200874592,29.1702,127.15,127.13,4.78165129]
[1719200875685,29.1702,127.15,127.12,4.78165129]
[1719200875887,29.1702,127.15,127.1,6.26]
[1719200876965,22.9102,127.15,127.11,6.26]
[1719200879396,22.9102,127.15,127.09,8.2083]
[1719200879603,22.9102,127.15,127.09,0.34]
[1719200879979,29.1702,127.15,127.1,6.26]
[1719200880190,29.1702,127.15,127.09,0.34]
[1719200880395,6.26,127.14,127.09,6.26]
[1719200880572,6.26,127.13,127.08,6.6]
[1719200881088,22.9102,127.15,127.1,6.26]
[1719200881291,29.1702,127.15,127.1,6.26]
[1719200883280,22.9102,127.15,127.08,100.34]
[1719200883480,22.9102,127.15,127.12,6.26]
[1719200883871,22.9102,127.15,127.11,0.17]
[1719200884089,22.9102,127.15,127.08,25.21]
[1719200884282,29.1702,127.15,127.08,0.17]
[1719200884491,6.26,127.14,127.09,6.26]
[1719200884893,29.1702,127.15,127.08,8.209]
[1719200885171,29.1702,127.15,127.1,6.26]
[1719200885581,22.9102,127.15,127.1,6.26]
[1719200885781,22.9102,127.15,127.11,6.26]
[1719200885982,22.9102,127.15,127.12,6.26]
[1719200886585,16.292,127.15,127.13,2.47873718]
[1719200886775,16.292,127.15,127.13,8.73873718]
[1719200886982,16.292,127.15,127.14,6.26]
[1719200888005,22.9508933,127.18,127.14,6.26]
[1719200888202,16.5287933,127.18,127.16,6.26]
[1719200888410,16.5287933,127.18,127.17,2.47928939]
[1719200891090,0.8161933,127.18,127.17,8.73928939]
[1719200891281,0.8161933,127.18,127.17,6.26]
[1719200891486,0.8161933,127.18,127.17,9.05521277]
[1719200892109,0.8161933,127.18,127.17,2.79521277]
[1719200892789,0.8161933,127.18,127.14,2.79521279]
[1719200892990,7.0761933,127.18,127.14,2.79521279]
[1719200893489,7.0761933,127.18,127.13,6.26]
[1719200893680,7.0761933,127.18,127.1,7.8675]
[1719200893882,7.0761933,127.18,127.08,136.1916]
[1719200893883,15.8842,127.16,127.09,7.8681]
[1719200894085,28.8069,127.16,127.1,0.47784374]
[1719200894407,28.8069,127.16,127.11,6.26]
[1719200894992,28.8069,127.16,127.09,7.8683]
[1719200895282,28.8069,127.16,127.11,6.26]
[1719200898304,28.8069,127.16,127.1,0.34]
[1719200898513,28.8069,127.16,127.11,6.26]
[1719200899594,22.5469,127.16,127.11,6.26]
[1719200899794,28.8069,127.16,127.11,6.26]
[1719200908028,28.8069,127.16,127.1,0.34]
[1719200908242,28.8069,127.16,127.11,6.26]
[1719200908407,6.26,127.13,127.05,62.3275]
[1719200908725,6.26,127.13,127.04,126.0557]
[1719200908726,6.26,127.12,127.07,6.26]
[1719200908923,6.26,127.12,127.06,7.8699]
[1719200909218,6.26,127.12,127.07,6.26]
[1719200909925,6.26,127.12,127.06,7.8699]
[1719200910127,6.26,127.12,127.08,6.26]
[1719200911508,6.26,127.13,127.08,6.26]
[1719200914909,15.0733,127.14,127.08,6.26]
[1719200915110,6.26,127.13,127.08,6.26]
[1719200915313,15.0733,127.14,127.1,14.1275]
[1719200915512,15.0733,127.14,127.11,6.26]
[1719200916215,21.3333,127.14,127.09,6.26]
[1719200916416,6.26,127.13,127.08,6.26]
[1719200917018,21.3333,127.14,127.09,6.26]
[1719200917740,15.0733,127.14,127.1,6.26]
[1719200918130,15.0733,127.14,127.11,14.1271]
[1719200918316,15.0733,127.14,127.12,6.26]
[1719200920346,15.0733,127.14,127.1,7.8672]
[1719200920517,15.0733,127.14,127.11,6.43]
[1719200921549,15.0733,127.14,127.11,6.26]
[1719200921752,21.3333,127.14,127.09,0.17]
[1719200921913,21.3333,127.14,127.09,6.6]
[1719200923250,21.3333,127.14,127.09,0.34]
[1719200923578,21.3333,127.14,127.09,6.6]
[1719200924430,15.0733,127.14,127.09,6.6]
[1719200924623,15.0733,127.14,127.1,6.43]
[1719200924833,15.0733,127.14,127.1,6.26]
[1719200925030,15.0733,127.14,127.07,6.26]
[1719200925031,6.26,127.12,127.07,6.26]
[1719200925233,6.26,127.12,127.08,0.17]
[1719200930261,6.26,127.13,127.08,6.43]
[1719200932247,6.26,127.13,127.08,0.17]
[1719200932452,6.26,127.13,127.08,6.26]
[1719200932654,6.26,127.13,127.07,0.34]
[1719200932862,6.26,127.13,127.08,6.26]
[1719200934056,6.26,127.13,127.07,0.34]
[1719200934443,6.26,127.13,127.08,6.26]
[1719200936352,6.26,127.12,127.07,6.6]
[1719200938461,6.26,127.11,127.07,6.6]
[1719200940376,15.0733,127.14,127.07,6.6]
[1719200940573,15.0733,127.14,127.08,7.8688]
[1719200940751,15.0733,127.14,127.07,6.6]
[1719200940752,6.26,127.12,127.07,8.2095]
[1719200940953,15.0733,127.14,127.07,14.4695]
[1719200941265,6.26,127.12,127.07,14.4695]
[1719200941645,16.2961,127.1,127.06,6.26]
[1719200941850,16.2961,127.1,127.0,147.32]
[1719200942174,6.26,127.09,127.05,7.8708]
[1719200942354,6.26,127.09,127.06,2.02320087]
[1719200942555,16.2961,127.1,127.06,2.02320087]
[1719200942750,16.2961,127.1,127.06,8.28320087]
[1719200942948,16.2961,127.1,127.05,7.8706]
[1719200943369,16.2961,127.1,127.06,0.17]
[1719200943756,16.2961,127.1,127.06,8.21]
[1719200943947,16.2961,127.1,127.08,6.26]
[1719200944149,16.2961,127.1,127.06,8.21]
[1719200944349,16.2961,127.1,127.08,6.26]
[1719200944847,16.2961,127.1,127.07,6.26]
[1719200945072,16.2961,127.1,127.08,0.17]
[1719200948145,16.2961,127.1,127.08,6.6]
[1719200948350,16.2961,127.1,127.08,0.34]
[1719200948568,16.2961,127.1,127.08,6.26]
[1719200948771,16.2961,127.1,127.07,0.17]
[1719200948976,16.2961,127.1,127.07,6.6]
[1719200949369,16.2961,127.1,127.05,7.8705]
[1719200949567,16.2961,127.1,127.04,7.8714]
[1719200949769,22.5561,127.1,127.05,6.26]
[1719200950888,22.5561,127.1,127.06,0.17]
[1719200951466,22.5561,127.1,127.03,7.872]
[1719200951689,22.5561,127.1,126.74,93.66346683]
[1719200951690,6.26,127.08,127.04,6.26]
[1719200951882,6.26,127.08,127.01,7.8731]
[1719200952187,18.04639692,127.1,127.02,14.1326]
[1719200952188,1.75029692,127.09,127.02,14.1326]
[1719200952392,6.26,127.09,127.01,19.6834]
[1719200952590,6.26,127.09,127.02,7.8723]
[1719200952793,6.26,127.08,127.03,6.26]
[1719200953367,6.26,127.08,127.03,14.1319]
[1719200953600,22.5561,127.1,127.05,6.26]
[1719200953884,22.5561,127.1,127.02,25.04]
[1719200954090,22.5561,127.1,127.04,7.8714]
[1719200954277,22.5561,127.1,127.03,8.2119]
[1719200954471,22.5561,127.1,127.04,6.26]
[1719200954672,6.26,127.09,127.04,6.26]
[1719200955794,22.5561,127.1,127.05,6.26]
[1719200956096,16.2961,127.1,127.05,0.17]
[1719200956302,16.2961,127.1,127.08,6.26]
[1719200956675,16.2961,127.1,127.09,6.26]
[1719200957270,16.2961,127.1,127.08,6.26]
[1719200959581,16.2961,127.1,127.07,0.34]
[1719200959899,16.2961,127.1,127.07,6.26]
[1719200961201,16.2961,127.1,127.05,7.8707]
[1719200961490,16.2961,127.1,127.07,6.26]
[1719200961680,16.2961,127.1,127.06,0.34]
[1719200961886,16.2961,127.1,127.07,6.26]
[1719200962090,16.2961,127.1,127.06,0.34]
[1719200962290,16.2961,127.1,127.07,6.26]
[1719200962793,16.2961,127.1,127.06,0.34]
[1719200962974,16.2961,127.1,127.05,0.34]
[1719200963176,22.5561,127.1,127.06,6.26]
[1719200963801,6.13882175,127.16,127.12,7.8665]
[1719200963987,7.0761933,127.18,127.13,6.26]
[1719200964693,7.0761933,127.18,127.14,1.11517587]
[1719200964878,0.8161933,127.18,127.14,1.11517587]
[1719200965701,7.0761933,127.18,127.14,2.05402276]
[1719200966090,6.26,127.17,127.14,2.05402276]
[1719200966291,0.8161933,127.18,127.14,2.05402276]
[1719200966495,6.26,127.17,127.14,2.05402276]
[1719200966697,6.26,127.17,127.13,2.06094216]
[1719200967202,0.8161933,127.18,127.13,2.06094216]
[1719200967410,6.26,127.17,127.13,2.06094216]
[1719200967780,6.26,127.17,127.12,6.26]
[1719200967981,6.26,127.17,127.13,2.06557004]
[1719200968199,6.26,127.17,127.13,3.63809105]
[1719200970397,21.5397,127.15,127.06,100.0]
[1719200970591,21.5397,127.15,127.05,7.8703]
[1719200970592,6.26,127.14,127.05,7.8703]
[1719200970790,6.26,127.14,127.06,7.8698]
[1719200970989,6.26,127.14,127.09,6.26]
[1719200971387,21.5397,127.15,127.09,6.26]
[1719200971709,6.26,127.14,127.08,7.869]
[1719200971908,6.26,127.14,127.09,6.26]
[1719200972296,6.26,127.14,127.07,7.8694]
[1719200972493,6.26,127.14,127.09,6.26]
[1719200972699,2.56649022,127.18,127.13,6.26]
[1719200972882,8.82649022,127.18,127.13,6.26]
[1719200973089,0.8161933,127.18,127.14,6.26]
[1719200973405,0.8161933,127.18,127.12,7.8663]
[1719200973605,0.8161933,127.18,127.15,6.26]
[1719200973801,0.8161933,127.18,127.13,0.17]
[1719200974124,0.8161933,127.18,127.14,6.26]
[1719200974627,6.26,127.17,127.13,6.26]
[1719200974997,6.26,127.17,127.12,6.6]
[1719200975327,6.26,127.17,127.12,6.26]
[1719200979523,6.26,127.17,127.09,7.8684]
[1719200979699,21.6616,127.15,127.08,7.8687]
[1719200979929,27.9216,127.15,127.1,6.26]
[1719200980822,27.9216,127.15,127.1,14.1277]
[1719200981023,21.6616,127.15,127.11,6.26]
[1719200982119,23.41189692,127.15,127.07,7.8694]
[1719200982439,6.26,127.12,127.03,22.1306]
[1719200982644,15.6799,127.1,127.06,6.26]
[1719200982818,15.6799,127.14,127.09,6.26]
[1719200983024,21.9399,127.14,127.09,6.26]
[1719200983430,21.9399,127.14,127.1,0.75072803]
[1719200984145,16.4960933,127.18,127.12,6.26]
[1719200984324,16.4960933,127.18,127.13,7.01080787]
[1719200984325,22.7560933,127.18,127.13,7.01080787]
[1719200984527,24.50639022,127.18,127.14,1.09296346]
[1719200984723,16.4960933,127.18,127.14,1.09296346]
[1719200984933,22.7560933,127.18,127.14,1.09296346]
[1719200985319,22.7560933,127.18,127.13,6.26]
[1719200985826,16.4960933,127.18,127.13,6.26]
[1719200986023,22.7560933,127.18,127.13,6.26]
[1719200986423,16.4960933,127.18,127.13,6.26]
[1719200986619,22.7560933,127.18,127.11,7.867]
[1719200986821,6.26,127.16,127.09,7.8679]
[1719200987021,6.26,127.16,127.11,6.26]
[1719200987622,16.4960933,127.18,127.1,6.26]
[1719200987838,6.26,127.15,127.1,6.26]
[1719200989432,27.6418,127.14,127.05,21.4645]
[1719200989629,27.6418,127.14,127.09,6.26]
[1719200990031,27.6418,127.14,127.1,6.26]
[1719200991220,21.3818,127.14,127.1,6.26]
[1719200991450,21.3818,127.14,127.08,7.8687]
[1719200991650,27.6418,127.14,127.1,6.26]
[1719200991835,27.6418,127.14,127.07,8.2095]
[1719200992433,27.6418,127.14,127.09,6.26]
[1719200993532,6.26,127.13,127.08,6.26]
[1719200993838,27.6418,127.14,127.09,6.26]
[1719200994529,21.3818,127.14,127.1,1.57930534]
[1719200994740,27.6418,127.14,127.09,6.26]
[1719200996065,21.3818,127.14,127.1,6.26]
[1719200996277,21.3818,127.14,127.07,0.34]
[1719200996582,6.26,127.13,127.08,6.26]
[1719200996741,6.26,127.11,127.02,100.0]
[1719200997061,6.26,127.11,127.06,6.26]
[1719200997439,6.26,127.11,127.07,1.57110989]
[1719200997655,15.1037,127.09,127.02,7.8727]
[1719200997860,21.3637,127.09,127.04,6.26]
[1719200999759,21.3637,127.09,127.02,7.8724]
[1719200999941,21.3637,127.09,127.04,6.26]
[1719201001172,15.1037,127.09,127.04,6.26]
[1719201001378,21.3637,127.09,127.04,6.26]
[1719201001551,15.1037,127.09,127.05,6.26]
[1719201001880,15.7868,127.12,127.07,14.1291]
[1719201002169,8.01029692,127.11,127.06,6.26]
[1719201002374,8.01029692,127.11,127.0,147.32]
[1719201002375,6.26,127.08,127.0,167.0045]
[1719201002587,6.26,127.08,127.04,6.26]
[1719201002887,6.26,127.08,127.03,6.26]
[1719201003463,6.26,127.08,127.01,8.043]
[1719201003663,6.26,127.08,127.03,6.26]
[1719201004503,12.3858,127.09,127.05,6.26]
[1719201004676,6.1258,127.09,127.05,6.26]
[1719201006069,12.3858,127.09,127.05,6.26]
[1719201008093,6.1258,127.09,127.05,6.26]
[1719201008475,6.1258,127.09,127.04,8.2113]
[1719201008796,6.1258,127.09,127.06,6.26]
[1719201008987,23.64239692,127.12,127.06,6.26]
[1719201009193,21.8921,127.12,127.07,6.43]
[1719201009378,21.8921,127.12,127.08,6.26]
[1719201009379,28.1521,127.12,127.08,6.26]
[1719201009568,21.8921,127.12,127.08,6.26]
[1719201009767,28.1521,127.12,127.07,6.43]
[1719201010695,21.8921,127.12,127.07,6.43]
[1719201010996,28.1521,127.12,127.07,6.43]
[1719201011172,21.8921,127.12,127.07,6.43]
[1719201011375,28.1521,127.12,127.07,6.43]
[1719201011895,6.26,127.11,127.07,0.17]
[1719201012078,6.26,127.11,127.07,0.34]
[1719201013097,28.1521,127.12,127.07,6.6]
[1719201014401,1.75029692,127.11,127.0,100.0]
[1719201014706,21.7476,127.08,127.04,6.26]
[1719201014887,15.4876,127.08,127.04,6.26]
[1719201016681,15.4876,127.08,127.05,6.26]
[1719201017398,15.3665,127.11,127.07,6.26]
[1719201019408,21.6265,127.11,127.07,6.26]
[1719201019591,15.3665,127.11,127.07,6.26]
[1719201019983,21.6265,127.11,127.07,6.26]
[1719201020513,15.3665,127.11,127.07,6.26]
[1719201023711,16.3876,127.15,127.06,0.34]
[1719201023880,16.3876,127.15,127.11,6.26]
[1719201024081,16.3876,127.15,127.12,1.11430959]
[1719201024504,16.3876,127.15,127.08,32.9089]
[1719201024711,16.3876,127.15,127.09,0.34]
[1719201025035,22.6476,127.15,127.09,0.34]
[1719201025237,16.3876,127.15,127.1,6.26]
[1719201025454,22.6476,127.15,127.1,6.26]
[1719201026328,16.3876,127.15,127.11,6.26]
[1719201027227,0.8161933,127.18,127.14,6.26]
[1719201027228,17.0251933,127.18,127.14,6.26]
[1719201029161,17.0251933,127.18,127.15,1.15390555]
[1719201029937,17.0251933,127.18,127.14,6.26]
[1719201030951,23.2851933,127.18,127.14,6.26]
[1719201031159,17.0251933,127.18,127.14,6.26]
[1719201031526,0.8161933,127.18,127.16,6.26]
[1719201031943,0.8161933,127.18,127.17,1.57038923]
[1719201032424,0.8161933,127.18,127.14,6.26]
[1719201032630,7.0761933,127.18,127.15,1.57137094]
[1719201032855,7.0761933,127.18,127.08,67.6893]
[1719201032856,15.0908,127.17,127.08,30.846]
[1719201033158,6.26,127.15,127.09,0.62334036]
[1719201033321,6.26,127.15,127.11,6.26]
[1719201033521,6.26,127.15,127.08,22.9771]
[1719201033726,6.26,127.14,127.09,6.26]
[1719201034151,6.26,127.14,127.05,7.8707]
[1719201034353,31.4069,127.14,127.06,6.26]
[1719201034563,1.75029692,127.13,127.04,7.8714]
[1719201034740,1.75029692,127.13,127.06,6.26]
[1719201034942,1.75029692,127.13,127.07,6.26]
[1719201036669,1.75029692,127.13,127.04,7.8713]
[1719201036848,15.586,127.12,127.02,7.8726]
[1719201037052,1.75029692,127.11,127.02,7.8726]
[1719201037661,1.75029692,127.11,127.03,7.8721]
[1719201038168,1.75029692,127.11,127.04,7.8714]
[1719201038359,17.33629692,127.12,127.04,7.8714]
[1719201039572,15.586,127.12,127.04,7.8714]
[1719201040863,15.586,127.12,127.03,8.2118]
[1719201041173,15.586,127.12,127.03,100.34]
[1719201041576,15.586,127.12,127.05,7.8705]
[1719201041754,15.586,127.12,127.03,8.2115]
[1719201042149,15.586,127.12,127.03,0.34]
[1719201042575,15.586,127.12,126.99,19.6862]
[1719201042576,6.2986,127.1,127.0,18.76]
[1719201042870,6.2986,127.1,127.01,7.8731]
[1719201043368,15.1396,127.09,127.01,7.8731]
[1719201043581,15.1396,127.09,127.02,7.8727]
[1719201043973,15.1396,127.09,127.03,0.17]
[1719201044669,15.1396,127.09,127.03,8.2121]
[1719201044873,15.1396,127.09,127.03,8.0421]
[1719201045088,15.1396,127.09,127.04,0.17]
[1719201046076,15.1396,127.09,127.05,7.8708]
[1719201046281,15.1396,127.09,127.06,0.34]
[1719201046975,15.1396,127.09,127.06,0.17]
[1719201047282,15.1396,127.09,127.05,0.34]
[1719201047504,15.1396,127.09,127.05,8.2107]
[1719201048485,15.1396,127.09,127.05,0.34]
[1719201048866,15.1396,127.09,127.05,8.2108]
[1719201051585,15.1396,127.09,127.05,0.34]
[1719201052584,15.1396,127.09,127.03,7.872]
[1719201052783,15.1396,127.09,127.03,7.8719]
[1719201053086,6.4598,127.08,127.01,7.873]
[1719201053858,6.4598,127.08,127.0,7.8737]
[1719201054673,1.75029692,127.07,126.99,7.8743]
[1719201055075,8.21009692,127.08,127.0,7.874]
[1719201055590,8.21009692,127.08,126.99,7.8743]
[1719201055775,26.97009692,127.08,126.99,7.8743]
[1719201055963,15.7382,127.07,126.98,15.7689]
[1719201056165,1.75029692,127.06,126.98,15.7689]
[1719201056691,15.7382,127.07,126.98,7.894]
[1719201056864,15.7382,127.07,127.0,7.8736]
[1719201057264,15.7382,127.07,127.01,0.34]
[1719201058667,15.7382,127.07,127.01,8.2133]
[1719201058878,15.7382,127.07,127.01,0.34]
[1719201059386,15.7382,127.07,127.01,8.2129]
[1719201059575,15.7382,127.07,127.01,0.34]
[1719201060188,15.7382,127.07,127.01,8.2133]
[1719201060560,6.26,127.06,127.01,14.4733]
[1719201060984,15.7382,127.07,127.01,14.4733]
[1719201061208,6.26,127.06,127.01,14.4733]
[1719201061677,15.7382,127.07,127.02,14.1327]
[1719201061678,21.9982,127.07,127.02,14.1327]
[1719201061885,15.7382,127.07,127.03,14.4721]
[1719201062073,15.7382,127.07,127.03,14.3021]
[1719201062272,15.7382,127.07,127.04,0.17]
[1719201063976,15.7382,127.07,127.04,1.74295279]
[1719201067501,15.7382,127.07,127.04,14.3012]
[1719201067687,15.7382,127.07,127.05,0.17]
[1719201069295,6.26,127.1,127.05,14.3008]
[1719201069496,22.5449,127.11,127.06,0.17]
[1719201069695,6.26,127.1,127.06,0.17]
[1719201069891,22.5449,127.11,127.06,0.17]
[1719201070398,22.5449,127.11,127.06,8.0402]
[1719201070570,22.5449,127.11,127.07,6.43]
[1719201070770,28.8049,127.11,127.07,6.26]
[1719201070989,28.8049,127.11,127.08,0.17]
[1719201071700,28.8049,127.11,127.07,0.17]
[1719201071876,28.8049,127.11,127.06,0.17]
[1719201071877,28.8049,127.11,127.06,6.6]
[1719201072699,28.8049,127.11,127.06,8.2101]
[1719201072902,28.8049,127.11,127.06,14.4701]
[1719201073494,28.8049,127.11,127.06,6.6]
[1719201073901,28.8049,127.11,127.06,14.4701]
[1719201074203,22.5449,127.11,127.06,6.6]
[1719201074391,28.8049,127.11,127.07,14.1293]
[1719201074696,28.8049,127.11,127.08,0.34]
[1719201074697,22.5449,127.11,127.08,0.34]
[1719201075677,22.5449,127.11,127.07,6.6]
[1719201075878,16.4308,127.11,127.07,14.4695]
[1719201076296,16.4308,127.11,127.08,6.26]
[1719201076482,16.4308,127.11,127.09,0.34]
[1719201079600,16.4308,127.11,127.07,7.8695]
[1719201079808,16.4308,127.11,127.08,0.34]
[1719201082306,22.6908,127.11,127.08,0.34]
[1719201082506,22.6908,127.11,127.07,0.34]
[1719201082711,22.6908,127.11,127.07,8.2095]
[1719201083392,22.6908,127.11,127.07,14.4695]
[1719201083787,16.4308,127.11,127.07,14.4695]
[1719201084390,16.4308,127.11,127.07,8.2095]
[1719201084596,16.4308,127.11,127.07,14.4695]
[1719201085105,16.4308,127.11,127.07,8.2095]
[1719201085310,16.4308,127.11,127.07,14.4695]
[1719201085688,16.4308,127.11,127.07,8.2095]
[1719201085989,16.4308,127.11,127.07,14.4695]
[1719201086186,16.4308,127.11,127.07,8.2095]
[1719201086388,16.4308,127.11,127.08,14.1289]
[1719201086602,16.4308,127.11,127.07,0.34]
[1719201086799,22.7626,127.14,127.11,7.8668]
[1719201086997,22.7626,127.14,127.11,14.1268]
[1719201088917,22.7626,127.14,127.11,6.26]
[1719201089116,21.5767,127.17,127.12,6.43]
[1719201089322,27.8367,127.17,127.12,6.43]
[1719201089497,27.8367,127.17,127.13,7.83072065]
[1719201090507,21.5767,127.17,127.13,7.83072065]
[1719201091402,21.5767,127.17,127.13,15.69652065]
[1719201091707,27.8367,127.17,127.13,1.57072065]
[1719201092422,6.26,127.15,127.1,14.1275]
[1719201092713,6.26,127.15,127.11,0.34]
[1719201093714,6.26,127.15,127.11,8.2071]
[1719201093920,6.26,127.15,127.11,0.34]
[1719201094595,6.26,127.15,127.11,0.17]
[1719201094798,6.26,127.14,127.1,7.8676]
[1719201095813,21.5767,127.17,127.1,7.8676]
[1719201096025,6.26,127.15,127.1,14.1276]
[1719201096226,21.5767,127.17,127.11,7.8671]
[1719201096402,6.26,127.16,127.11,14.1271]
[1719201096603,6.26,127.16,127.12,7.8665]
[1719201097423,6.26,127.16,127.13,2.36502079]
[1719201097718,6.26,127.15,127.13,1.57074461]
[1719201098306,6.26,127.15,127.12,3.94949034]
[1719201098512,6.26,127.15,127.13,3.94918007]
[1719201098826,21.5767,127.17,127.13,3.94918007]
[1719201099018,6.26,127.16,127.13,3.94918007]
[1719201099221,6.26,127.14,127.09,8.2084]
[1719201099527,6.26,127.14,127.1,0.34]
[1719201099822,6.26,127.14,127.06,6.0452]
[1719201100059,22.0629,127.12,127.05,7.8705]
[1719201100247,22.0629,127.12,127.06,7.8699]
[1719201100408,22.0629,127.12,127.03,32.31651044]
[1719201100722,22.0629,127.12,127.07,7.8695]
[1719201101311,22.0629,127.12,127.08,8.0389]
[1719201101706,22.0629,127.12,127.08,0.17]
[1719201102227,6.26,127.09,127.02,19.6817]
[1719201102408,6.26,127.08,127.04,7.8714]
[1719201102926,22.0629,127.12,127.06,7.8702]
[1719201103117,6.26,127.1,127.06,7.8702]
[1719201104123,22.0629,127.12,127.07,7.8696]
[1719201104317,6.26,127.11,127.07,7.8696]
[1719201105833,6.26,127.11,127.06,7.87]
[1719201106011,6.26,127.11,127.06,14.13]
[1719201106426,6.26,127.1,127.06,7.87]
[1719201107431,6.26,127.11,127.07,7.8693]
[1719201108014,28.3229,127.12,127.07,7.8693]
[1719201108210,28.3229,127.12,127.07,14.1293]
[1719201108422,28.3229,127.12,127.08,0.41044746]
[1719201108929,6.26,127.11,127.08,0.41044746]
[1719201109131,22.0629,127.12,127.08,8.27924746]
[1719201109323,28.3229,127.12,127.08,8.27924746]
[1719201109522,28.3229,127.12,127.08,7.8688]
[1719201110036,28.3229,127.12,127.07,14.4695]
[1719201110344,28.3229,127.12,127.08,8.039]
[1719201111634,6.26,127.11,127.06,7.8699]
[1719201111834,6.26,127.11,127.06,14.1299]
[1719201112930,6.26,127.1,127.04,7.8711]
[1719201113123,6.26,127.09,127.05,7.8708]